[Event "2nd AICF Women-GM 2018"]
[Site "Hyderabad"]
[Date "2018.08.16"]
[Round "11"]
[White "Pratyusha, Bodda"]
[Black "Monnisha G K"]
[Result "1-0"]
[ECO "A50"]
[WhiteElo "2294"]
[BlackElo "2219"]
[Annotator "ChessBase"]
[PlyCount "55"]
[EventDate "2018.08.09"]
[EventType "tourn"]
[EventCountry "IND"]
[SourceTitle "playchess.com"]
[Source "ChessBase"]
[SourceQuality "1"]
[TimeControl "40/5400+30:1800+30"]

1. d4 {[%emt 0:00:00]} Nf6 {[%emt 0:00:00]} 2. c4 {[%emt 0:00:00]} Nc6 {[%emt 0:00:00]} 3. Nc3 {[%emt 0:00:00]} e5 {[%emt 0:00:00]} 4. d5 {[%emt 0:00:17]} Ne7 {[%emt 0:00:00]} 5. e4 {[%emt 0:02:19]} Ng6 {[%emt 0:00:58]} 6. Be3 {[%emt 0:00:30]} Bb4 {[%emt 0:03:14]} 7. Bd3 Nh4 {[%emt 0:00:30]} 8. Kf1 {[%emt 0:00:38]} Bxc3 {[%emt 0:01:09]} 9. bxc3 {[%emt 0:00:05]} d6 {[%emt 0:00:09]} 10. h3 {[%emt 0:00:28]} h6 {[%emt 0:02:21]} 11. c5 {[%emt 0:01:03]} O-O {[%emt 0:07:13]} 12. g3 {[%emt 0:01:38]} Ng6 {[%emt 0:01:30]} 13. Ne2 {[%emt 0:00:35]} b6 14. c6 {[%emt 0:03:26]} Nh7 {[%emt 0:03:29]} 15. Qc2 {[%emt 0:04:31]} Ng5 {[%emt 0:01:17]} 16. Kg2 f5 17. exf5 {[%emt 0:09:07]} e4 {[%emt 0:08:47]} 18. Bxe4 Nxe4 {[%emt 0:00:19]} 19. fxg6 {[%emt 0:00:36]} Qe8 {[%emt 0:09:57]} 20. Nf4 {[%emt 0:03:52]} Ng5 {[%emt 0:02:17]} 21. g4 {[%emt 0:06:06]} Qe5 {[%emt 0:02:00]} 22. Rae1 {[%emt 0:01:34]} Ba6 {[%emt 0:17:28]} 23. Bc1 {[%emt 0:06:02]} Qf6 {[%emt 0:03:09]} 24. h4 {[%emt 0:00:26]} Bc4 {[%emt 0:01:20]} 25. hxg5 {[%emt 0:03:22]} hxg5 {[%emt 0:00:55]} 26. Rh3 {[%emt 0:09:06]} gxf4 {[%emt 0:00:58]} 27. Reh1 {[%emt 0:00:09]} Bxd5+ {[%emt 0:00:04]} 28. f3 {[%emt 0:00:09]} 1-0

[Event "2nd AICF Women-GM 2018"]
[Site "Hyderabad"]
[Date "2018.08.16"]
[Round "11"]
[White "Aakanksha Hagawane"]
[Black "Nandhidhaa, PV."]
[Result "1-0"]
[ECO "B40"]
[WhiteElo "2292"]
[BlackElo "2266"]
[Annotator "ChessBase"]
[PlyCount "119"]
[EventDate "2018.08.09"]
[EventType "tourn"]
[EventCountry "IND"]
[SourceTitle "playchess.com"]
[Source "ChessBase"]
[SourceQuality "1"]
[TimeControl "40/5400+30:1800+30"]

1. e4 {[%emt 0:00:00]} c5 {[%emt 0:01:19]} 2. Nf3 {[%emt 0:00:00]} e6 {[%emt 0:00:03]} 3. c4 {[%emt 0:00:00]} Nc6 {[%emt 0:00:06]} 4. Nc3 {[%emt 0:00:04]} Nf6 {[%emt 0:00:07]} 5. Be2 {[%emt 0:00:14]} d5 {[%emt 0:02:45]} 6. exd5 {[%emt 0:00:39]} exd5 {[%emt 0:00:07]} 7. d4 {[%emt 0:00:16]} cxd4 {[%emt 0:04:01]} 8. Nxd4 {[%emt 0:00:18]} dxc4 {[%emt 0:01:17]} 9. Nxc6 {[%emt 0:00:26]} Qxd1+ {[%emt 0:00:24]} 10. Nxd1 {[%emt 0:00:09]} bxc6 {[%emt 0:00:08]} 11. Bxc4 {[%emt 0:00:25]} Bb4+ {[%emt 0:01:14]} 12. Bd2 {[%emt 0:00:56]} Bxd2+ {[%emt 0:00:47]} 13. Kxd2 {[%emt 0:00:02]} O-O {[%emt 0:00:20]} 14. Ne3 {[%emt 0:02:15]} Nd5 {[%emt 0:03:42]} 15. Rhd1 {[%emt 0:04:35]} Nxe3 {[%emt 0:06:53]} 16. Kxe3 {[%emt 0:00:36]} Re8+ {[%emt 0:00:25]} 17. Kf3 {[%emt 0:00:52]} Bf5 {[%emt 0:04:02]} 18. Rac1 {[%emt 0:06:00]} h5 {[%emt 0:10:09]} 19. Kg3 {[%emt 0:04:18]} Rad8 {[%emt 0:16:27]} 20. Bb3 {[%emt 0:15:25]} Rxd1 {[%emt 0:01:32]} 21. Rxd1 {[%emt 0:00:12]} Kf8 {[%emt 0:07:39]} 22. Rd6 {[%emt 0:03:11]} Rc8 {[%emt 0:00:11]} 23. Kf4 {[%emt 0:03:20]} Ke7 {[%emt 0:00:17]} 24. Rd4 {[%emt 0:01:06]} g6 {[%emt 0:01:40]} 25. h3 {[%emt 0:02:36]} c5 {[%emt 0:00:29]} 26. Ra4 {[%emt 0:03:03]} Rc7 {[%emt 0:00:18]} 27. g4 {[%emt 0:01:40]} hxg4 {[%emt 0:00:17]} 28. hxg4 {[%emt 0:00:02]} Bd3 {[%emt 0:02:02]} 29. Bc4 {[%emt 0:00:55]} Bxc4 {[%emt 0:01:50]} 30. Rxc4 {[%emt 0:00:01]} Kd6 {[%emt 0:00:10]} 31. Kg5 {[%emt 0:01:25]} Kd5 {[%emt 0:05:48]} 32. b3 {[%emt 0:01:38]} Rc6 {[%emt 0:00:37]} 33. Rf4 {[%emt 0:01:02]} Rc7 {[%emt 0:00:30]} 34. Kf6 {[%emt 0:00:32]} Rb7 {[%emt 0:05:17]} 35. g5 {[%emt 0:01:12]} Rb6+ {[%emt 0:05:28]} 36. Kxf7 {[%emt 0:00:14]} Ra6 {[%emt 0:00:03]} 37. Rf6 {[%emt 0:04:06]} Rxa2 {[%emt 0:00:06]} 38. Kxg6 {[%emt 0:00:06]} Rb2 {[%emt 0:00:29]} 39. Rf3 {[%emt 0:08:18]} Ke4 {[%emt 0:00:10]} 40. Rh3 {[%emt 0:04:13]} Rxf2 {[%emt 0:02:15]} 41. Kh7 {[%emt 0:30:36]} Rf7+ {[%emt 0:34:44]} 42. Kh6 {[%emt 0:00:15]} Rf8 {[%emt 0:00:32]} 43. Rc3 {[%emt 0:01:39]} Rh8+ {[%emt 0:03:02]} 44. Kg7 {[%emt 0:00:27]} Rb8 {[%emt 0:00:14]} 45. Rxc5 {[%emt 0:01:08]} Rxb3 {[%emt 0:00:06]} 46. g6 {[%emt 0:00:18]} Kd4 {[%emt 0:03:35]} 47. Ra5 {[%emt 0:00:11]} Rb7+ {[%emt 0:00:26]} 48. Kh6 {[%emt 0:01:55]} Kc4 {[%emt 0:00:05]} 49. Ra1 {[%emt 0:01:20]} Rb2 {[%emt 0:03:10]} 50. Rxa7 {[%emt 0:02:33]} Rh2+ {[%emt 0:00:06]} 51. Kg7 {[%emt 0:01:17]} Kd5 {[%emt 0:00:05]} 52. Re7 {[%emt 0:00:21]} Kd6 {[%emt 0:00:15]} 53. Re1 {[%emt 0:00:17]} Rg2 {[%emt 0:00:21]} 54. Kf7 {[%emt 0:00:12]} Rf2+ {[%emt 0:00:16]} 55. Kg8 {[%emt 0:00:16]} Ra2 {[%emt 0:00:18]} 56. g7 {[%emt 0:00:20]} Rg2 {[%emt 0:00:25]} 57. Rh1 {[%emt 0:00:26]} Ke7 {[%emt 0:02:30]} 58. Kh7 {[%emt 0:00:12]} Kf7 {[%emt 0:00:23]} 59. Rf1+ {[%emt 0:00:15]} Ke7 {[%emt 0:00:07]} 60. g8=Q {[%emt 0:00:10]} 1-0

[Event "2nd AICF Women-GM 2018"]
[Site "Hyderabad"]
[Date "2018.08.16"]
[Round "11"]
[White "Babiy, Olga"]
[Black "Mahalakshmi, M."]
[Result "1-0"]
[ECO "B10"]
[WhiteElo "2291"]
[BlackElo "2177"]
[Annotator "ChessBase"]
[PlyCount "115"]
[EventDate "2018.08.09"]
[EventType "tourn"]
[EventCountry "IND"]
[SourceTitle "playchess.com"]
[Source "ChessBase"]
[SourceQuality "1"]
[TimeControl "40/5400+30:1800+30"]

1. e4 {[%emt 0:00:00]} c6 {[%emt 0:00:00]} 2. Nc3 {[%emt 0:00:00]} d5 {[%emt 0:00:00]} 3. Nf3 {[%emt 0:00:00]} dxe4 {[%emt 0:00:00]} 4. Nxe4 {[%emt 0:00:01]} Nf6 {[%emt 0:00:02]} 5. Qe2 {[%emt 0:02:23]} e6 {[%emt 0:04:41]} 6. Nxf6+ {[%emt 0:01:58]} Qxf6 {[%emt 0:01:15]} 7. d4 {[%emt 0:01:00]} Qd8 {[%emt 0:03:22]} 8. g3 {[%emt 0:03:45]} Be7 {[%emt 0:02:12]} 9. Bg2 {[%emt 0:00:42]} Nd7 {[%emt 0:00:50]} 10. O-O {[%emt 0:01:51]} O-O {[%emt 0:00:58]} 11. Rd1 {[%emt 0:02:05]} b6 {[%emt 0:05:20]} 12. Bf4 {[%emt 0:02:37]} Bb7 {[%emt 0:01:18]} 13. c4 {[%emt 0:00:46]} Re8 {[%emt 0:02:54]} 14. Ne1 {[%emt 0:05:10]} Qc8 {[%emt 0:08:44]} 15. Qe4 {[%emt 0:07:56]} Nf8 {[%emt 0:04:39]} 16. Nd3 {[%emt 0:08:53]} Ng6 {[%emt 0:03:26]} 17. Be3 {[%emt 0:06:14]} Bf6 {[%emt 0:06:03]} 18. Ne5 {[%emt 0:13:29]} Qc7 {[%emt 0:06:50]} 19. Bf4 {[%emt 0:05:52]} Nxf4 {[%emt 0:07:03]} 20. gxf4 {[%emt 0:00:05]} Rab8 {[%emt 0:01:41]} 21. c5 {[%emt 0:00:32]} Bxe5 {[%emt 0:01:30]} 22. fxe5 {[%emt 0:02:27]} Qe7 {[%emt 0:00:52]} 23. b4 {[%emt 0:00:27]} Red8 {[%emt 0:04:30]} 24. Rac1 {[%emt 0:02:30]} a5 {[%emt 0:06:37]} 25. b5 {[%emt 0:02:24]} cxb5 {[%emt 0:03:05]} 26. c6 {[%emt 0:00:02]} Ba8 {[%emt 0:00:28]} 27. Qe2 {[%emt 0:00:45]} Rdc8 {[%emt 0:05:47]} 28. Qxb5 {[%emt 0:00:16]} h6 {[%emt 0:02:31]} 29. a4 {[%emt 0:02:06]} Rc7 {[%emt 0:01:25]} 30. Rc3 {[%emt 0:00:53]} Qg5 {[%emt 0:03:55]} 31. h3 {[%emt 0:06:31]} Rbc8 {[%emt 0:03:29]} 32. Rdc1 {[%emt 0:02:49]} Rb8 {[%emt 0:00:51]} 33. Qe2 {[%emt 0:03:28]} Rd8 {[%emt 0:01:05]} 34. Qe3 {[%emt 0:00:54]} Qe7 {[%emt 0:03:34]} 35. Rb1 {[%emt 0:00:25]} Rb8 {[%emt 0:00:25]} 36. Qc1 {[%emt 0:01:19]} Qd8 {[%emt 0:00:49]} 37. Rc4 {[%emt 0:02:12]} Qe8 {[%emt 0:00:45]} 38. Qc3 {[%emt 0:01:07]} Qd8 {[%emt 0:00:48]} 39. f4 {[%emt 0:02:22]} g6 {[%emt 0:01:33]} 40. Qe3 {[%emt 0:04:30]} Kh7 {[%emt 0:02:12]} 41. Kh2 {[%emt 0:30:32]} Rcc8 {[%emt 0:05:31]} 42. Qc3 {[%emt 0:00:00]} Rc7 {[%emt 0:03:29]} 43. Rb5 {[%emt 0:00:00]} Qh4 {[%emt 0:05:12]} 44. d5 {[%emt 0:00:00]} exd5 {[%emt 0:00:12]} 45. Rxd5 {[%emt 0:00:00]} Qe7 {[%emt 0:02:53]} 46. Rd6 {[%emt 0:00:00]} b5 {[%emt 0:00:44]} 47. axb5 {[%emt 0:00:00]} Rxb5 {[%emt 0:00:02]} 48. Qd4 {[%emt 0:00:00]} Rb3 49. Rc3 {[%emt 0:00:00]} Rb2 {[%emt 0:09:07]} 50. Rc1 {[%emt 0:00:00]} Rb4 {[%emt 0:00:55]} 51. Qd2 {[%emt 0:00:00]} Rb8 {[%emt 0:03:39]} 52. Rc2 {[%emt 0:00:00]} Rbc8 {[%emt 0:04:58]} 53. Qxa5 {[%emt 0:02:45]} Qh4 {[%emt 0:00:22]} 54. Qd2 {[%emt 0:00:24]} Re7 {[%emt 0:00:55]} 55. Qf2 {[%emt 0:00:34]} Qh5 {[%emt 0:00:34]} 56. Rd7 {[%emt 0:02:37]} Rxd7 {[%emt 0:00:49]} 57. cxd7 {[%emt 0:00:01]} Bxg2 {[%emt 0:00:45]} 58. dxc8=Q {[%emt 0:00:39]} 1-0

[Event "2nd AICF Women-GM 2018"]
[Site "Hyderabad"]
[Date "2018.08.16"]
[Round "11"]
[White "Prudnykova, Olga"]
[Black "Nakhbayeva, Guliskhan"]
[Result "1-0"]
[ECO "A01"]
[WhiteElo "2272"]
[BlackElo "2352"]
[Annotator "ChessBase"]
[PlyCount "79"]
[EventDate "2018.08.09"]
[EventType "tourn"]
[EventCountry "IND"]
[SourceTitle "playchess.com"]
[Source "ChessBase"]
[SourceQuality "1"]
[TimeControl "40/5400+30:1800+30"]

1. b3 {[%emt 0:00:00]} e5 {[%emt 0:00:00]} 2. Bb2 {[%emt 0:00:00]} Nc6 {[%emt 0:00:00]} 3. e3 {[%emt 0:00:00]} Nf6 {[%emt 0:00:00]} 4. Nf3 {[%emt 0:00:00]} e4 {[%emt 0:00:35]} 5. Nd4 {[%emt 0:00:00]} Bc5 {[%emt 0:05:14]} 6. Nxc6 {[%emt 0:00:54]} bxc6 {[%emt 0:01:22]} 7. d3 {[%emt 0:11:30]} Bb4+ {[%emt 0:05:50]} 8. Nd2 {[%emt 0:01:54]} exd3 {[%emt 0:06:28]} 9. Bxd3 {[%emt 0:00:56]} d5 {[%emt 0:00:15]} 10. O-O {[%emt 0:02:45]} O-O {[%emt 0:01:14]} 11. h3 {[%emt 0:01:03]} Qe7 {[%emt 0:01:26]} 12. a3 {[%emt 0:06:59]} Bd6 {[%emt 0:00:32]} 13. Qf3 {[%emt 0:03:07]} Nd7 {[%emt 0:06:43]} 14. e4 {[%emt 0:05:41]} Qg5 {[%emt 0:12:17]} 15. Qd1 {[%emt 0:20:46]} Qf4 {[%emt 0:06:10]} 16. g3 {[%emt 0:05:23]} Qh6 {[%emt 0:00:34]} 17. exd5 {[%emt 0:07:58]} cxd5 {[%emt 0:05:14]} 18. Nf3 {[%emt 0:02:06]} Nc5 {[%emt 0:03:09]} 19. h4 {[%emt 0:04:58]} Bg4 {[%emt 0:04:50]} 20. Be2 {[%emt 0:01:17]} Rae8 {[%emt 0:03:35]} 21. Nd4 {[%emt 0:00:57]} Rxe2 {[%emt 0:03:00]} 22. Nxe2 {[%emt 0:00:07]} Bf3 {[%emt 0:03:39]} 23. b4 {[%emt 0:02:51]} Ne4 {[%emt 0:09:10]} 24. Qd3 {[%emt 0:00:30]} Ng5 {[%emt 0:00:34]} 25. Qf5 {[%emt 0:04:36]} f6 {[%emt 0:05:22]} 26. Nd4 {[%emt 0:04:19]} g6 {[%emt 0:02:22]} 27. Qd7 {[%emt 0:00:02]} Rf7 {[%emt 0:04:12]} 28. Qc8+ {[%emt 0:00:24]} Rf8 {[%emt 0:00:30]} 29. Qd7 {[%emt 0:00:04]} Be4 {[%emt 0:00:42]} 30. Qg4 {[%emt 0:00:47]} Be7 {[%emt 0:06:39]} 31. Bc1 {[%emt 0:03:44]} c5 {[%emt 0:02:35]} 32. f3 {[%emt 0:01:00]} f5 {[%emt 0:01:13]} 33. Bxg5 {[%emt 0:01:03]} Qg7 {[%emt 0:00:08]} 34. Ne6 {[%emt 0:05:03]} Qxa1 {[%emt 0:00:03]} 35. Rxa1 {[%emt 0:00:03]} fxg4 {[%emt 0:00:05]} 36. Nxf8 {[%emt 0:00:05]} Bxg5 {[%emt 0:00:58]} 37. hxg5 {[%emt 0:00:18]} Bxc2 {[%emt 0:00:50]} 38. Ne6 {[%emt 0:00:24]} c4 {[%emt 0:00:58]} 39. Nd4 {[%emt 0:00:34]} Bd3 {[%emt 0:00:27]} 40. fxg4 1-0